Cogmind - Beta 16 @@@ ROGUE MODE // 2026.01.02 @ 20:27:27 Player: doki Result: Self-destructed Performance ------------- Evolutions (0) 0 Regions Visited (3) 600 Robots Destroyed (13) 65 Value Destroyed (410) 410 Prototype IDs (1) 20 Alien Tech Used (0) 0 Bonus (800) 800 TOTAL SCORE: 1895 Bonus ------- Registered with UFD 300 Met Optimus in HQ 500 Cogmind --------- Core Integrity 53/250 Matter 259/300 Energy 148/250 System Corruption 0% Temperature Cool (0) Movement Treading (160) Location -9/Scraptown Parts ------- > --- POWER (1) -------- Ion Engine > --- PROPULSION (2) --- Light Treads Light Treads > --- UTILITY (2) ------ Large Storage Unit > --- WEAPON (2) ------- Junk Cannon > --- INVENTORY (15) --- Ion Engine Ion Engine Light Treads Light Treads EM Pulse Gun EM Shotgun Small Laser Assault Rifle Assault Rifle Grenade Launcher Mining Claw Peak State ------------ > --- POWER ------------ Ion Engine > --- PROPULSION ------- Light Treads Light Treads > --- UTILITY ---------- Large Storage Unit Medium Armor Plating > --- WEAPON ----------- Junk Cannon > --- INVENTORY -------- Ion Engine Ion Engine Light Treads Light Treads EM Pulse Gun EM Shotgun Small Laser Assault Rifle Assault Rifle Grenade Launcher Mining Claw [Rating: 19] Favorites ----------- Power Ion Engine Engine Ion Engine Propulsion Light Treads Treads Light Treads Utility Large Storage Unit Device Seismic Detector Storage Large Storage Unit Protection Medium Armor Plating Weapon Assault Rifle Energy Gun EM Pulse Gun Ballistic Gun Assault Rifle Launcher Grenade Launcher Special Weapon Mining Laser Build | -11 -10 -10 -9 ------- Run | Yrd Mat Sub Scr Slots Evolved . | . . . . Power . | . . . . Propulsion . | . . . . Utility . | . . . . Weapon . | . . . . Parts Attached 18 | 7 5 1 5 Power 2 | 1 . . 1 Engine 2 | 1 . . 1 Core . | . . . . Reactor . | . . . . Propulsion 4 | 2 . . 2 Treads 4 | 2 . . 2 Leg . | . . . . Wheel . | . . . . Hover . | . . . . Flight . | . . . . Utility 5 | 2 1 1 1 Device 2 | 1 . 1 . Storage 2 | 1 1 . . Processor . | . . . . Hackware . | . . . . Protection 1 | . . . 1 Artifact . | . . . . Weapon 7 | 2 4 . 1 Energy Gun 2 | 1 1 . . Energy Cannon . | . . . . Ballistic Gun 2 | 1 1 . . Ballistic Cannon . | . . . . Launcher 1 | . 1 . . Special Weapon 2 | . 1 . 1 Impact Weapon . | . . . . Slashing Weapon . | . . . . Piercing Weapon . | . . . . Special Melee Weapon . | . . . . Unidentified Prototypes 1 | . . . 1 Parts Lost 4 | . 2 1 1 Power . | . . . . Propulsion . | . . . . Utility 3 | . 1 1 1 Weapon 1 | . 1 . . Highest Loss Streak 2 | . 2 1 1 To Critical Strikes . | . . . . Average Backups 5 | 2 3 4 7 Power 1 | . 1 1 1 Propulsion . | . . . . Utility . | . 1 . . Weapon 4 | 1 1 3 5 Tool/Special . | . . . . Unused Backups 4 | . . . 4 Power 2 | . . . 2 Propulsion . | . . . . Utility . | . . . . Weapon 2 | . . . 2 Tool/Special . | . . . . Average Slot Usage (%) 69 | . 87 88 60 Engine 14 | . 14 14 14 Treads 28 | . 28 28 28 Storage 14 | . 14 14 14 Protection 1 | . . . 2 Energy Gun 2 | . 9 . . Ballistic Gun 5 | . 16 14 . Launcher 1 | . . 14 . Peak Build Rating 19 | 7 7 9 19 Average Rating 5 | 5 6 6 5 On Entrance 4 | . 7 6 6 Avg Prop Armor Cover (%) . | . . . . Naked Turns . | . . . . Heaviest Build 46 | 14 30 31 46 Greatest Support 40 | 40 40 40 40 Greatest Overweight (x) 1 | . . . 1 Average Overweight (x) . | . . . . Largest Inventory Capacity 15 | 8 15 15 15 Average Capacity 14 | 7 14 15 15 Most Carried 13 | 4 5 5 13 Average Carried 6 | 2 3 4 7 Final Capacity 15 | 8 15 15 15 Final Carried 11 | 4 5 4 11 Class Distribution -------------------- 88% | Mutant 11% | Derelict-Mutant Dominant Class ---------------- Mutant | -10/Materials Mutant | -10/Subcaves Mutant | -9/Scraptown Resources | -11 -10 -10 -9 ----------- Run | Yrd Mat Sub Scr Matter Collected 528 | 279 44 41 164 Remotely . | . . . . Salvage Created 440 | 96 128 146 70 Parts 29 | 10 4 13 2 Haulers Intercepted . | . . . . Recyclers Shooed . | . . . . Parts Field Recycled . | . . . . Retrieved Matter . | . . . . Parts Self-Destructed . | . . . . Prevented . | . . . . Parts Restored . | . . . . Kills | -11 -10 -10 -9 ------- Run | Yrd Mat Sub Scr Combat Hostiles Destroyed 9 | . 3 5 1 Guns 3 | . 3 . . AOE 5 | . . 5 . Classes Destroyed 6 | 2 2 1 1 Tunneler 2 | 2 . . . Recycler 1 | 1 . . . Watcher 1 | . 1 . . Grunt 3 | . 3 . . Subdweller 5 | . . 5 . Scrapper 1 | . . . 1 Best Kill Streak 4 | 3 2 4 1 Combat Bots Only 4 | . 2 4 1 Max Kills in Single Turn 2 | 1 1 2 1 Gunslinging . | . . . . Exploded 2 | . . 2 . Melee . | . . . . Uniques/NPCs Destroyed . | . . . . Combat | -11 -10 -10 -9 -------- Run | Yrd Mat Sub Scr Hostile Shots Fired 80 | . 25 9 46 Missed 20 | . 3 5 12 Hits 60 | . 22 4 34 Projectile 60 | . 22 4 34 Critical Strikes 3 | . 2 . 1 Damage Taken 925 | . 283 193 449 Core 197 | . 42 60 95 Absorbed by Shields . | . . . . Core Remaining (%) 100 | 100 . . . Volleys Fired 37 | 3 13 17 4 Largest 2 | 2 2 2 1 Hottest 120 | 60 120 50 . Shots Fired 50 | 6 21 19 4 Gun 25 | 6 14 5 . Cannon . | . . . . Launcher 15 | . 1 14 . Special 10 | . 6 . 4 Kinetic 18 | 3 10 5 . Thermal 9 | 3 6 . . Explosive 15 | . 1 14 . Electromagnetic 4 | . 4 . . Impact 4 | . . . 4 Robot Hit Streak 15 | 3 9 15 3 Robot Miss Streak 1 | 1 1 . 1 Penetration Max . | . . . . Secondary Targets 1 | . 1 . . Max Gunslinging Chain 1 | . 1 . . Shots Hit Robots 26 | 4 13 6 3 Core Hits 20 | 4 6 10 . Critical Kills . | . . . . Critical Parts Destroyed 1 | . . . 1 Critical Strikes 1 | . . . 1 Smash 1 | . . . 1 Melee Attacks . | . . . . Impact . | . . . . Slashing . | . . . . Piercing . | . . . . Sneak Attacks . | . . . . Combat Hostiles . | . . . . Follow-up Attacks . | . . . . Damage Inflicted 1031 | 46 222 534 229 Guns 248 | 46 179 23 . Cannons . | . . . . Explosions 511 | . . 511 . Melee . | . . . . Ramming 19 | . 19 . . Kinetic 164 | 34 107 23 . Thermal 36 | 12 24 . . Explosive 511 | . . 511 . Electromagnetic 72 | . 72 . . Impact 229 | . . . 229 Slashing . | . . . . Piercing . | . . . . Highest Corruption . | . . . . Average Corruption . | . . . . Corruption Purged . | . . . . Corruption Blocked . | . . . . Overload Shots . | . . . . Overflow Damage 137 | . . . 137 Projectiles 137 | . . . 137 Explosions . | . . . . Melee . | . . . . Knockbacks 3 | . . . 3 Impact 2 | . . . 2 Kinetic . | . . . . Secondary 1 | . . . 1 Self-Inflicted Damage 115 | . . 115 . Shots 6 | . . 6 . Rammed 5 | . 5 . . Targets Rammed 5 | . 5 . . Kicked . | . . . . Crushed . | . . . . Highest Temperature 148 | . 148 . 20 Average Temperature 62 | . 64 . 11 Received Heat Transfer 379 | . 198 24 157 Siege Activations . | . . . . Martial Activations . | . . . . Shielding Activations . | . . . . Robots Disrupted . | . . . . Combat Hostiles . | . . . . Robots Corrupted 1 | . . . 1 Combat Hostiles 1 | . . . 1 Parts Fried . | . . . . Impact Corruptions 4 | . . . 4 Robots Melted . | . . . . Combat Hostiles . | . . . . Parts Melted . | . . . . Heat Transferred 75 | 25 50 . . Parts Sabotaged . | . . . . Parts Stolen . | . . . . Parts Stripped . | . . . . Power Chain Reactions . | . . . . Alert | -11 -10 -10 -9 ------- Run | Yrd Mat Sub Scr Maximum Alert Level . | . . . . Low Security (%) 100 | 100 100 . . Level 1 . | . . . . Level 2 . | . . . . Level 3 . | . . . . Level 4 . | . . . . Level 5 . | . . . . High Security . | . . . . Max Security . | . . . . Peak Influence 50 | 10 50 . . Initial . | . . . . Average 6 | 1 8 . . Influence Increases 128 | 15 113 . . Destroy 0b10 Robot/C 60 | . 60 . . Destroy 0b10 Robot/NC 20 | 15 5 . . Destroy Leader 22 | . 22 . . Disable Machine 15 | . 15 . . Destroy Structure 11 | . 11 . . Influence Decreases 128 | 15 99 14 . Entered New Map 7 | . . 7 . Time Decay 120 | 15 98 7 . Lost Part 1 | . 1 . . Squads Dispatched 2 | . 2 . . Investigation 1 | . 1 . . Extermination . | . . . . Reinforcement 1 | . 1 . . Assault . | . . . . Garrison . | . . . . Intercept . | . . . . Searches Triggered . | . . . . Construction Impeded . | . . . . Haulers Reinforced . | . . . . Active Scanning Responses . | . . . . Cargo Convoy Interrupts . | . . . . Stealth | -11 -10 -10 -9 --------- Run | Yrd Mat Sub Scr Distress Signals 1 | . 1 . . Communications Jammed . | . . . . Distress Signals . | . . . . Times Spotted 23 | . 7 5 11 Peak Tracking Total 8 | . 3 2 8 Tactical Retreats . | . . . . Traps | -11 -10 -10 -9 ------- Run | Yrd Mat Sub Scr Traps Triggered 1 | . 1 . . Indirectly . | . . . . Trap Hack Attempts . | . . . . Triggered . | . . . . Disarmed . | . . . . Reprogrammed . | . . . . Reused . | . . . . Traps Extracted . | . . . . Installed . | . . . . Triggered . | . . . . Machines | -11 -10 -10 -9 ---------- Run | Yrd Mat Sub Scr Machines Disabled 1 | . 1 . . Max in Single Turn 1 | . 1 . . Machines Repaired . | . . . . Machines Dismantled . | . . . . Machines Sabotaged . | . . . . Overloaded Fab Kills . | . . . . Hacking | -11 -10 -10 -9 --------- Run | Yrd Mat Sub Scr Machines Accessed 3 | . 3 . . Terminals 2 | . 2 . . Fabricators . | . . . . Repair Stations . | . . . . Recycling Units 1 | . 1 . . Scanalyzers . | . . . . Garrison Access . | . . . . Total Hacks 5 | . 5 . . Successful 1 | . 1 . . Failed 4 | . 4 . . Catastrophic . | . . . . Database Lockouts . | . . . . Manual 2 | . 2 . . Terminals 4 | . 4 . . Fabricators . | . . . . Repair Stations . | . . . . Recycling Units 1 | . 1 . . Scanalyzers . | . . . . Garrison Access . | . . . . Terminal Hacks . | . . . . Fabricator Hacks . | . . . . Repair Station Hacks . | . . . . Recycling Unit Hacks 1 | . 1 . . Report Inventory 1 | . 1 . . Scanalyzer . | . . . . Garrison Access Hacks . | . . . . Unauthorized Hacks . | . . . . Terminals . | . . . . Fabricators . | . . . . Repair Stations . | . . . . Recycling Units . | . . . . Scanalyzers . | . . . . Garrison Access . | . . . . Data Cores Recovered . | . . . . Used . | . . . . Hacking Detections 2 | . 2 . . Full Trace Events . | . . . . Feedback Events . | . . . . Feedback Blocked . | . . . . Robot Schematics Acquired . | . . . . Robots Built . | . . . . Authchips . | . . . . Time . | . . . . Total Robot Build Rating . | . . . . Part Schematics Acquired . | . . . . Parts Built . | . . . . Authchips . | . . . . Time . | . . . . Total Part Build Rating . | . . . . Part Studies Acquired . | . . . . Parts Repaired . | . . . . Time . | . . . . Parts Recycled . | . . . . Recycled Matter . | . . . . Retrieved Matter . | . . . . Retrieved Components . | . . . . Parts Scanalyzed . | . . . . Part Schematics Acquired . | . . . . Parts Damaged . | . . . . Bothacking | -11 -10 -10 -9 ------------ Run | Yrd Mat Sub Scr Used RIF Installer . | . . . . Robots Hacked . | . . . . Non-combat . | . . . . Combat . | . . . . Robot Hacks Applied . | . . . . Relay Couplers Released . | . . . . Fabnet Peak Effective % . | . . . . Robots Rewired . | . . . . Allies Hacked . | . . . . Hacks Repelled . | . . . . Allies | -11 -10 -10 -9 -------- Run | Yrd Mat Sub Scr Total Allies . | . . . . Largest Group . | . . . . Highest-Rated Group . | . . . . Highest-Rated Ally . | . . . . Total Orders . | . . . . Ally Attacks . | . . . . Total Damage . | . . . . Kills . | . . . . Allies Corrupted . | . . . . Allies Melted . | . . . . Intel | -11 -10 -10 -9 ------- Run | Yrd Mat Sub Scr Active Infowar (turns) 164 | 37 69 58 . Terrain 58 | . . 58 . Seismic 106 | 37 69 . . Robot Analysis Total . | . . . . Derelict Logs Recovered . | . . . . Drone Launches . | . . . . Drone Recoveries . | . . . . Exploration | -11 -10 -10 -9 ------------- Run | Yrd Mat Sub Scr Turns Passed 1967 | 88 408 223 1248 Spaces Moved 1135 | 44 215 117 759 Core 4 | 4 . . . Treads 1131 | 40 215 117 759 Legs . | . . . . Wheels . | . . . . Hover . | . . . . Flight . | . . . . Fastest Speed 50 | 50 160 160 160 Average Speed 160 | 150 160 160 161 Slowest Speed 240 | 160 160 160 240 Overloaded Moves . | . . . . Propulsion Burnouts . | . . . . Robots Hopped . | . . . . Potential Cave-ins . | . . . . Cave-ins Triggered . | . . . . Exploration Rate (%) 28 | 4 31 12 66 Regions Visited 3 Branch Regions 2 Pre-discovered Areas . | . . . . Known Exits Taken . | . . . . Unknown Exits Taken 3 | 1 1 1 . Scrap Searched 2 | . . . 2 Spaces Dug 13 | . 10 3 . Terrain Destroyed 56 | . 11 44 1 Melee . | . . . . Projectile 5 | . 4 . 1 AOE 51 | . 7 44 . Terrain Rammed . | . . . . Walls Destroyed . | . . . . Machines Disabled . | . . . . Actions | -11 -10 -10 -9 --------- Run | Yrd Mat Sub Scr Total 1210 | 57 242 134 777 Wait 3 | . 2 . 1 Move 1133 | 43 215 116 759 Hop . | . . . . Pick Up 8 | 4 1 . 3 Fast Attach 10 | 7 1 . 2 Attach 3 | . 1 1 1 Detach 4 | . 1 . 3 Swap 6 | . 3 . 3 Drop 2 | . 1 . 1 Fire 37 | 3 13 17 4 Melee . | . . . . Ram . | . . . . Kick . | . . . . Crush 4 | . 4 . . Escape Stasis . | . . . . Rewire . | . . . . Trap . | . . . . Miscellaneous . | . . . . Route ------- -11/Scrapyard -10/Materials (discovered 2 exits: [*Mat] / [*Sub]) -10/Subcaves -9/Scraptown (discovered 2 exits: [*Fac x2]) History --------- Turn | Location | Event 26 | -11/Scrapyard | Discovered new exit (range 16) 89 | -11/Scrapyard | Entered Materials 126 | -10/Materials | Discovered new exit (range 2) 197 | -10/Materials | Discovered new exit (range 15) 312 | -10/Materials | Build established: Mutant 497 | -10/Materials | Entered Subcaves 498 | -10/Subcaves | Approached by a straggling Scientist 596 | -10/Subcaves | A swath of the cavern ceiling suddenly collapsed 682 | -10/Subcaves | Ambushed by Subdweller buried in earth 720 | -10/Subcaves | Entered Scraptown 928 | -9/Scraptown | Heard Great Nut preacher, LISTEN AND RECITE! 1072 | -9/Scraptown | Discovered new exit (range 13) 1221 | -9/Scraptown | Visited UFD Registry 1222 | -9/Scraptown | Registered with UFD as "Nukecutter" 1245 | -9/Scraptown | Visited TADAMA 1397 | -9/Scraptown | Visited Curators Association 1432 | -9/Scraptown | Visited Junk Cannon Lab 1443 | -9/Scraptown | Found Prototype Special Weapon 1443 | -9/Scraptown | Identified Junk Cannon 1491 | -9/Scraptown | Visited Supply Room 1615 | -9/Scraptown | Discovered new exit (range 3) 1679 | -9/Scraptown | Visited DA-N13 Charitable Foundation 1694 | -9/Scraptown | Found DCF Scrap (29 items) 1815 | -9/Scraptown | Met Optimus 1815 | -9/Scraptown | Accepted into 0bPrime 1866 | -9/Scraptown | Visited Scrap Suit Storage 1915 | -9/Scraptown | Civil war broke out across Scraptown 1959 | -9/Scraptown | Core integrity fell below 50% 1968 | -9/Scraptown | Self-destructed Last Messages --------------- Computer. 01959_ JX-ZB6(j) system corrupted by crushing effect. 01961_ Critical hit (Burn: +50). 01961_ Destroyed Lgt. Deuterium Engine. 01961_ JX-ZB6(j) system corrupted by crushing effect. 01961_ JX-ZB6(j) knocked back. 01962_ JX-ZB6(j) system terminally corrupted. 01962_ Penetrated by Bolt. 01963_ Destroyed EM Pulse Gun. 01963_ Destroyed Lgt. Deuterium Engine. 01963_ 7H-SE3(p) system corrupted by crushing effect. 01963_ 7H-SE3(p) knocked back. 01966_ Junk Cannon collects and crushes Ovr. Treads (+2 shots). 01967_ Penetrated by Bolt. 01967_ Med. Armor Plating destroyed. 01967_ Penetrated by Bolt. Map ----- +----------------------------------------------------+ | | | | | | | | | | | | | | | ?????????????????????????????????????????????????? | | ?????????????????????????????????????????????????? | | ?????????????????????????????????????????????????? | | ?????????????????????????????????????????????????? | | ?????????????????????????????????????????????????? | | ?????????????????????????????????????????????????? | | ?????????????????????????????????????????????????? | | ?????????????????????????????????????????????????? | | ?????????????????????????????????????????????????? | | ?????????????????????????????????????????????????? | | ?????????????????????????????????????????????????? | | ?????????????????????????????????#####???????????? | | ?????????????????????????????????#"""#???????????? | | ??###################???####?????#"! ##??????????? | | ??"""##"""##""|##"""##### ##?####%